bitfinex-derivatives/quotes_BTCF0:USTF0_20260127
["timestamp","ask_amount","ask_price","bid_price","bid_amount"]
[1769482372543,0.10148,88811.0,88794.0,0.01187152]
[1769482372841,0.11261071,88810.0,88794.0,0.01187152]
[1769482374742,0.10148,88811.0,88795.0,0.01173921]
[1769482375137,0.10148,88811.0,88800.0,0.01173921]
[1769482379046,0.112752,88816.0,88800.0,0.01173921]
[1769482379449,0.11260563,88815.0,88800.0,0.01173921]
[1769482380741,0.11260563,88815.0,88793.0,0.00788355]
[1769482380742,0.011271,88822.0,88805.0,0.01182737]
[1769482380947,0.01127,88833.0,88812.0,0.011272]
[1769482381247,0.1984,88839.0,88813.0,0.01182737]
[1769482381248,0.1126031,88829.0,88813.0,0.01182737]
[1769482381451,0.10148,88832.0,88813.0,0.01182737]
[1769482381857,0.10148,88832.0,88814.0,0.01184671]
[1769482382148,0.11275,88832.0,88814.0,0.01184671]
[1769482382342,0.10148,88832.0,88814.0,0.01184671]
[1769482384550,0.10148,88832.0,88815.0,0.01179805]
[1769482385345,0.10148,88832.0,88816.0,0.01179805]
[1769482385546,0.01127,88831.0,88816.0,0.01179805]
[1769482385850,0.10148,88832.0,88816.0,0.01179805]
[1769482387741,0.10148,88832.0,88817.0,0.0117694]
[1769482389555,0.10148,88832.0,88820.0,0.16207292]
[1769482392550,0.10148,88832.0,88814.0,0.10148]
[1769482392754,0.01127,88828.0,88814.0,0.10148]
[1769482393355,0.01127,88831.0,88814.0,0.10148]
[1769482393759,0.01127,88831.0,88814.0,0.11297822]
[1769482395247,0.10148,88832.0,88815.0,0.02277022]
[1769482395453,0.10148,88832.0,88820.0,0.16207292]
[1769482396057,0.10148,88832.0,88824.0,0.01148081]
[1769482396257,0.42472,88847.0,88825.0,0.01148081]
[1769482396458,0.011268,88842.0,88830.0,0.16207292]
[1769482396657,0.11257965,88839.0,88830.0,0.16207292]
[1769482396857,0.011268,88842.0,88830.0,0.16207292]
[1769482397059,0.11257965,88841.0,88825.0,0.01148081]
[1769482397451,0.011268,88842.0,88825.0,0.01148081]
[1769482397452,0.011269,88840.0,88825.0,0.01148081]
[1769482399163,0.011269,88837.0,88825.0,0.01148081]
[1769482399463,0.011269,88834.0,88821.0,0.01151395]
[1769482400154,0.011269,88838.0,88821.0,0.01151395]
[1769482400354,0.011269,88836.0,88821.0,0.01151395]
[1769482400558,0.011269,88836.0,88821.0,0.11295395]
[1769482402063,0.011269,88839.0,88822.0,0.01146232]
[1769482402563,0.011269,88837.0,88822.0,0.01146232]
[1769482407567,0.011269,88840.0,88824.0,0.01147297]
[1769482408068,0.011269,88839.0,88824.0,0.01147297]
[1769482408874,0.011269,88839.0,88824.0,0.02274397]
[1769482409073,0.10144,88844.0,88829.0,0.16207292]
[1769482409273,0.011269,88841.0,88829.0,0.16207292]
[1769482410071,0.11257267,88840.0,88829.0,0.16207292]
[1769482410272,0.11257267,88840.0,88825.0,0.01147347]
[1769482410978,0.11257267,88840.0,88826.0,0.01127]
[1769482411181,0.10144,88844.0,88831.0,0.01148427]
[1769482411373,0.011268,88847.0,88834.0,0.01148427]
[1769482411678,0.11257077,88846.0,88834.0,0.01148427]
[1769482412179,0.10144,88850.0,88830.0,0.17355719]
[1769482412581,0.011268,88848.0,88831.0,0.01150368]
[1769482412978,0.1125619,88847.0,88831.0,0.01150368]
[1769482414480,0.1125619,88847.0,88834.0,0.01150178]
[1769482414682,0.1125619,88847.0,88837.0,0.16207292]
[1769482414883,0.1125619,88847.0,88834.0,0.01150178]
[1769482417193,0.1238299,88847.0,88834.0,0.01150178]
[1769482417494,0.011268,88844.0,88830.0,0.17357565]
[1769482418594,0.011268,88844.0,88830.0,0.01150273]
[1769482418795,0.011268,88844.0,88830.0,0.17357565]
[1769482420791,0.26351292,88850.0,88820.0,0.13496694]
[1769482421093,0.12383371,88843.0,88823.0,0.011271]
[1769482421288,0.011268,88843.0,88823.0,0.011271]
[1769482421483,0.011268,88843.0,88824.0,0.0115029]
[1769482421781,0.011268,88846.0,88827.0,0.01127]
[1769482421981,0.11256824,88842.0,88827.0,0.01127]
[1769482422191,0.011268,88846.0,88827.0,0.01127]
[1769482422393,0.11256887,88845.0,88827.0,0.01127]
[1769482422592,0.011268,88844.0,88827.0,0.01127]
[1769482422793,0.12383687,88845.0,88831.0,0.01141612]
[1769482422994,0.011268,88843.0,88831.0,0.01141612]
[1769482423294,0.011268,88843.0,88830.0,0.16207292]
[1769482423494,0.011268,88843.0,88827.0,0.01141612]
[1769482423691,0.11256571,88842.0,88827.0,0.01141612]
[1769482424400,0.011269,88841.0,88827.0,0.01141612]
[1769482425102,0.27464179,88840.0,88820.0,0.01139661]
[1769482425294,0.011269,88838.0,88821.0,0.10144]
[1769482425893,0.011269,88836.0,88821.0,0.10144]
[1769482426401,0.12383851,88839.0,88821.0,0.10144]
[1769482426594,0.011269,88839.0,88821.0,0.10144]
[1769482426796,0.11257648,88838.0,88821.0,0.10144]
[1769482427201,0.011269,88837.0,88821.0,0.10144]
[1769482427802,0.011269,88839.0,88822.0,0.02245076]
[1769482427997,0.26351292,88850.0,88823.0,0.01117976]
[1769482428202,0.11257521,88839.0,88825.0,0.01117976]
[1769482428501,0.011268,88843.0,88825.0,0.01117976]
[1769482428803,0.011269,88841.0,88825.0,0.01117976]
[1769482429204,0.11256634,88840.0,88825.0,0.01117976]
[1769482430902,0.11256634,88840.0,88824.0,0.011271]
[1769482430903,0.11256634,88840.0,88827.0,0.01127]
[1769482431205,0.10144,88842.0,88828.0,0.01128571]
[1769482431602,0.11257014,88841.0,88828.0,0.01128571]
[1769482431904,0.10144,88842.0,88828.0,0.01128571]
[1769482432105,0.11257014,88841.0,88828.0,0.01128571]
[1769482436205,0.12383914,88841.0,88828.0,0.01128571]
[1769482436412,0.12383914,88841.0,88824.0,0.011271]
[1769482436708,0.12383914,88841.0,88824.0,0.02258416]
[1769482437503,0.12383914,88841.0,88825.0,0.01131316]
[1769482437802,0.11257014,88841.0,88825.0,0.01131316]
[1769482438911,0.11257014,88841.0,88821.0,0.01131291]
[1769482439413,0.011269,88838.0,88821.0,0.01131291]
[1769482440107,0.011269,88838.0,88822.0,0.011271]
[1769482440308,0.011269,88841.0,88823.0,0.01131291]
[1769482440615,0.11257521,88841.0,88826.0,0.01129446]
[1769482440916,0.11257521,88841.0,88827.0,0.01127]
[1769482441511,0.11257521,88841.0,88831.0,0.01129446]
[1769482441705,0.10144,88842.0,88831.0,0.01129446]
[1769482441911,0.10144,88842.0,88825.0,0.01129446]
[1769482442511,0.112708,88842.0,88825.0,0.01129446]
[1769482442710,0.011269,88840.0,88825.0,0.01129446]
[1769482442920,0.011269,88838.0,88826.0,0.10144]
[1769482443813,0.16207292,88840.0,88826.0,0.10144]
[1769482444009,0.011269,88841.0,88826.0,0.10144]
[1769482444209,0.011269,88841.0,88821.0,0.0113549]
[1769482444420,0.011269,88841.0,88823.0,0.0113549]
[1769482446813,0.10144,88842.0,88818.0,0.01130368]
[1769482447014,0.27464496,88840.0,88819.0,0.50976]
[1769482447213,0.16207292,88840.0,88819.0,0.50976]
[1769482447424,0.11257204,88839.0,88819.0,0.50976]
[1769482447623,0.011269,88834.0,88819.0,0.50976]
[1769482449416,0.011269,88834.0,88819.0,0.52105208]
[1769482451125,0.16207292,88840.0,88812.0,0.01128311]
[1769482451322,0.01127,88828.0,88812.0,0.01128311]
[1769482451520,0.10144,88842.0,88812.0,0.01128311]
[1769482451724,0.01127,88831.0,88812.0,0.01128311]
[1769482452426,0.11257965,88830.0,88814.0,0.01128311]
[1769482452924,0.01127,88832.0,88814.0,0.01128311]
[1769482453626,0.11258345,88831.0,88814.0,0.01128311]
[1769482457526,0.11258345,88831.0,88809.0,0.10144]
[1769482457527,0.11258345,88831.0,88811.0,0.13496694]
[1769482457827,0.10144,88842.0,88809.0,0.10144]
[1769482457828,0.10144,88842.0,88810.0,0.13496694]
[1769482458130,0.10144,88831.0,88806.0,0.00650231]
[1769482458437,0.011272,88817.0,88806.0,0.00650231]
[1769482460321,0.011271,88826.0,88807.0,0.01129581]
[1769482461123,0.11259803,88825.0,88807.0,0.01129581]
[1769482461324,0.011271,88824.0,88807.0,0.01129581]
[1769482461928,0.11259232,88823.0,88807.0,0.01129581]
[1769482465537,0.011271,88822.0,88807.0,0.01129581]
[1769482466136,0.11259359,88821.0,88807.0,0.01129581]
[1769482467837,0.011271,88820.0,88807.0,0.01129581]
[1769482469229,0.011271,88823.0,88807.0,0.01129581]
[1769482470237,0.11259549,88822.0,88807.0,0.01129581]
[1769482471040,0.01127,88826.0,88807.0,0.01129581]
[1769482471339,0.11259359,88825.0,88807.0,0.01129581]
[1769482471638,0.011271,88824.0,88807.0,0.01129581]
[1769482472434,0.11259169,88823.0,88810.0,0.01130818]
[1769482472626,0.10144,88831.0,88810.0,0.01130818]
[1769482472825,0.11259295,88830.0,88810.0,0.01130818]
[1769482473029,0.01127,88830.0,88811.0,0.011272]
[1769482473331,0.11259295,88830.0,88814.0,0.01130818]
[1769482473640,0.01127,88830.0,88814.0,0.01130818]
[1769482474040,0.01127,88827.0,88814.0,0.01130818]
[1769482477634,0.01127,88830.0,88814.0,0.01130818]
[1769482477835,0.10144,88834.0,88814.0,0.01130818]
[1769482477836,0.01127,88833.0,88814.0,0.01130818]
[1769482478042,0.12385662,88833.0,88814.0,0.01130818]
[1769482478231,0.01127,88831.0,88814.0,0.01130818]
[1769482478939,0.01127,88829.0,88814.0,0.01130818]
[1769482479739,0.11258535,88828.0,88814.0,0.01130818]
[1769482480034,0.01127,88827.0,88814.0,0.01130818]
[1769482480239,0.011271,88825.0,88814.0,0.01130818]
[1769482481647,0.10144,88834.0,88807.0,0.01136831]
[1769482481648,0.01127,88832.0,88807.0,0.01136831]
[1769482482047,0.011271,88823.0,88807.0,0.01136831]
[1769482482651,0.011271,88821.0,88807.0,0.01136831]
[1769482485849,0.011271,88825.0,88807.0,0.01136831]
[1769482488643,0.10144,88834.0,88809.0,0.01131622]
[1769482488940,0.11259232,88833.0,88809.0,0.01131622]
[1769482490252,0.011271,88825.0,88809.0,0.01131622]
[1769482491353,0.10144,88834.0,88809.0,0.01131622]
[1769482491657,0.11259105,88833.0,88809.0,0.01131622]
[1769482492355,0.011271,88824.0,88809.0,0.01131622]
[1769482492941,0.01127,88827.0,88809.0,0.01131622]
[1769482493445,0.01127,88827.0,88808.0,0.112713]
[1769482493446,0.01127,88827.0,88810.0,0.11276151]
[1769482493647,0.011271,88825.0,88810.0,0.11276151]
[1769482494158,0.011271,88825.0,88811.0,0.01132151]
[1769482494651,0.01127,88828.0,88811.0,0.01132151]
[1769482494949,0.01127,88828.0,88810.0,0.10144]
[1769482494950,0.11258979,88833.0,88813.0,0.011272]
[1769482495249,0.10144,88834.0,88814.0,0.011306]
[1769482495447,0.10144,88843.0,88822.0,0.011306]
[1769482495645,0.10144,88843.0,88828.0,0.011306]
[1769482497250,0.011268,88842.0,88828.0,0.011306]
[1769482500556,0.012268,88842.0,88828.0,0.011306]
[1769482502248,0.012268,88842.0,88824.0,0.10144]
[1769482502249,0.011269,88838.0,88824.0,0.10144]
[1769482502453,0.011269,88836.0,88824.0,0.10144]
[1769482505753,0.10144,88843.0,88825.0,0.01129697]
[1769482505754,0.011269,88839.0,88825.0,0.01129697]
[1769482505956,0.011268,88842.0,88825.0,0.01129697]
[1769482506650,0.011267,88853.0,88833.0,0.011269]
[1769482506855,0.10794129,88856.0,88834.0,0.01128841]
[1769482507056,0.11257014,88855.0,88834.0,0.01128841]
[1769482507261,0.011267,88852.0,88834.0,0.01128841]
[1769482507462,0.12383714,88855.0,88835.0,0.01128841]
[1769482507662,0.12383714,88855.0,88837.0,0.01128841]
[1769482507863,0.011267,88853.0,88837.0,0.01128841]
[1769482508659,0.1125581,88852.0,88837.0,0.01128841]
[1769482508858,0.011267,88853.0,88837.0,0.01128841]
[1769482509166,0.112707,88856.0,88837.0,0.01128841]
[1769482509666,0.11255557,88855.0,88841.0,0.01139929]
[1769482509884,0.0065009,88864.0,88836.0,0.10144]
[1769482509885,0.0065009,88864.0,88845.0,0.01139929]
[1769482510367,0.11255367,88861.0,88845.0,0.01139929]
[1769482510569,0.0065009,88864.0,88845.0,0.01139929]
[1769482510765,0.11254354,88863.0,88845.0,0.01139929]
[1769482511661,0.11254354,88863.0,88850.0,0.16195835]
[1769482512272,0.12380954,88863.0,88850.0,0.16195835]
[1769482512568,0.12380954,88863.0,88845.0,0.01139929]
[1769482514464,0.011266,88861.0,88845.0,0.01139929]
[1769482514768,0.0065009,88864.0,88845.0,0.01139929]
[1769482515071,0.11254417,88860.0,88845.0,0.01139929]
[1769482515269,0.16195835,88860.0,88845.0,0.01139929]
[1769482516170,0.16195835,88860.0,88840.0,0.16195835]
[1769482516171,0.011267,88853.0,88841.0,0.0113777]
[1769482516669,0.011267,88856.0,88841.0,0.0113777]
[1769482517670,0.011267,88852.0,88842.0,0.10144]
[1769482517867,0.011267,88855.0,88842.0,0.10144]
[1769482518864,0.011267,88855.0,88842.0,0.11278941]
[1769482519064,0.011266,88858.0,88843.0,0.11278941]
[1769482520364,0.011266,88861.0,88843.0,0.11278941]
[1769482520566,0.011266,88859.0,88843.0,0.11278941]
[1769482520969,0.011266,88859.0,88844.0,0.01126935]
[1769482521878,0.011266,88862.0,88844.0,0.01126935]
[1769482522367,0.011266,88860.0,88844.0,0.01126935]
[1769482523778,0.011268,88848.0,88835.0,0.10144]
[1769482523976,0.011268,88846.0,88835.0,0.10144]
[1769482524778,0.011268,88842.0,88835.0,0.10144]
[1769482525368,0.16195835,88845.0,88821.0,0.01125258]
[1769482525672,0.011269,88837.0,88825.0,0.10144]
[1769482525868,0.01127,88831.0,88821.0,0.10144]
[1769482526075,0.16195835,88831.0,88821.0,0.10144]
[1769482526268,0.01127,88827.0,88811.0,0.01125258]
[1769482526467,0.01127,88827.0,88815.0,0.10144]
[1769482526676,0.01127,88831.0,88812.0,0.01130468]
[1769482527475,0.16195835,88840.0,88813.0,0.011272]
[1769482527677,0.011269,88835.0,88816.0,0.01130468]
[1769482527879,0.01127,88833.0,88816.0,0.01130468]
[1769482529472,0.16195835,88840.0,88816.0,0.01130468]
[1769482529473,0.011269,88836.0,88816.0,0.01130468]
[1769482529679,0.10360499,88835.0,88817.0,0.01173224]
[1769482529978,0.10360499,88834.0,88817.0,0.01173224]
[1769482530168,0.011269,88836.0,88817.0,0.01173224]
[1769482530370,0.11258155,88833.0,88817.0,0.01173224]
[1769482530570,0.011269,88836.0,88817.0,0.01173224]
[1769482530770,0.10359146,88835.0,88817.0,0.01173224]
[1769482531069,0.21617237,88834.0,88817.0,0.01173224]
[1769482531270,0.011269,88836.0,88817.0,0.01173224]
[1769482531474,0.11258091,88833.0,88817.0,0.01173224]
[1769482531666,0.011269,88841.0,88824.0,0.01180315]
[1769482531869,0.10357517,88840.0,88830.0,0.16195835]
[1769482532072,0.10357517,88840.0,88827.0,0.01180315]
[1769482532073,0.21615418,88839.0,88827.0,0.01180315]
[1769482532388,0.10357517,88838.0,88827.0,0.01180315]
[1769482532579,0.11257901,88838.0,88829.0,0.01183042]
[1769482532779,0.011268,88845.0,88829.0,0.01183042]
[1769482533083,0.011268,88843.0,88829.0,0.01183042]
[1769482533683,0.011269,88841.0,88824.0,0.01183042]
[1769482536888,0.10355067,88840.0,88824.0,0.01183042]
[1769482537080,0.10355067,88839.0,88824.0,0.01183042]
[1769482537280,0.011269,88841.0,88824.0,0.01183042]
[1769482537585,0.10354656,88840.0,88824.0,0.01183042]
[1769482537786,0.011269,88841.0,88824.0,0.01183042]
[1769482537982,0.10354656,88840.0,88824.0,0.01183042]
[1769482538184,0.011269,88841.0,88824.0,0.01183042]
[1769482538384,0.10354286,88840.0,88824.0,0.01183042]
[1769482538683,0.011269,88841.0,88824.0,0.01183042]
[1769482538883,0.011269,88839.0,88824.0,0.01183042]
[1769482540791,0.011268,88842.0,88824.0,0.01183042]
[1769482540975,0.10354383,88841.0,88824.0,0.01183042]
[1769482541179,0.10354383,88840.0,88824.0,0.01183042]
[1769482541390,0.10354383,88839.0,88824.0,0.01183042]
[1769482541583,0.10144,88846.0,88824.0,0.01183042]
[1769482541881,0.216124,88845.0,88824.0,0.01183042]
[1769482542080,0.10355133,88844.0,88824.0,0.01183042]
[1769482542282,0.10355133,88843.0,88824.0,0.01183042]
[1769482542481,0.10144,88846.0,88824.0,0.01183042]
[1769482542482,0.011269,88839.0,88824.0,0.01183042]
[1769482542682,0.011269,88837.0,88824.0,0.01183042]
[1769482543892,0.16195835,88840.0,88824.0,0.01183042]
[1769482543893,0.17322735,88840.0,88824.0,0.01183042]
[1769482544077,0.10358372,88839.0,88824.0,0.01183042]
[1769482544282,0.10358372,88838.0,88829.0,0.17377905]
[1769482544478,0.011268,88843.0,88829.0,0.17377905]
[1769482544690,0.10359652,88842.0,88829.0,0.17377905]
[1769482544992,0.10359652,88841.0,88829.0,0.0118207]
[1769482545293,0.10359652,88840.0,88829.0,0.0118207]
[1769482545491,0.10359652,88839.0,88829.0,0.0118207]
[1769482545693,0.10359652,88838.0,88829.0,0.0118207]
[1769482545883,0.11256887,88842.0,88829.0,0.0118207]
[1769482546086,0.10361005,88841.0,88829.0,0.0118207]
[1769482546284,0.10361005,88840.0,88829.0,0.0118207]
[1769482546584,0.10361005,88839.0,88829.0,0.0118207]
[1769482546784,0.011268,88843.0,88829.0,0.0118207]
[1769482546985,0.21619415,88842.0,88829.0,0.0118207]
[1769482547186,0.10364297,88841.0,88829.0,0.0118207]
[1769482547393,0.11256887,88841.0,88829.0,0.0118207]
[1769482547885,0.011268,88843.0,88829.0,0.0118207]
[1769482548085,0.10364297,88842.0,88829.0,0.0118207]
[1769482548287,0.10364297,88841.0,88831.0,0.01176709]
[1769482548493,0.10144,88846.0,88831.0,0.01176709]
[1769482548686,0.10366019,88845.0,88831.0,0.01176709]
[1769482548880,0.10366019,88844.0,88831.0,0.01176709]
[1769482549086,0.11492819,88843.0,88831.0,0.01176709]
[1769482549286,0.10366019,88842.0,88831.0,0.01176709]
[1769482549585,0.10366019,88841.0,88831.0,0.01176709]
[1769482550295,0.10144,88846.0,88831.0,0.01176709]
[1769482550296,0.112708,88846.0,88831.0,0.01176709]
[1769482550594,0.11256634,88842.0,88831.0,0.01176709]
[1769482550795,0.10370392,88841.0,88831.0,0.01176709]
[1769482551095,0.112708,88846.0,88831.0,0.01176709]
[1769482551297,0.10370392,88845.0,88831.0,0.01176709]
[1769482551488,0.10370392,88844.0,88831.0,0.01176709]
[1769482552094,0.21626836,88843.0,88831.0,0.01176709]
[1769482552296,0.10370392,88842.0,88830.0,0.16195835]
[1769482552894,0.21626836,88841.0,88830.0,0.16195835]
[1769482553094,0.10370392,88840.0,88830.0,0.16195835]
[1769482553596,0.10370392,88839.0,88827.0,0.01179537]
[1769482553796,0.011268,88844.0,88830.0,0.16195835]
[1769482554095,0.11256824,88843.0,88830.0,0.16195835]
[1769482554293,0.011268,88844.0,88830.0,0.16195835]
[1769482554491,0.11256824,88843.0,88830.0,0.16195835]
[1769482554904,0.011268,88844.0,88830.0,0.16195835]
[1769482555091,0.011268,88842.0,88830.0,0.16195835]
[1769482555386,0.011268,88842.0,88827.0,0.01179537]
[1769482555387,0.26339835,88850.0,88827.0,0.01179537]
[1769482555592,0.011269,88839.0,88824.0,0.10144]
[1769482556196,0.011269,88839.0,88824.0,0.11322806]
[1769482556698,0.10394614,88838.0,88825.0,0.01175613]
[1769482556891,0.10394614,88837.0,88825.0,0.01175613]
[1769482557091,0.10394614,88836.0,88825.0,0.01175613]
[1769482557294,0.10394614,88835.0,88825.0,0.01175613]
[1769482557594,0.11257267,88849.0,88827.0,0.01175613]
[1769482557800,0.011268,88845.0,88830.0,0.16195835]
[1769482558094,0.10395578,88844.0,88830.0,0.16195835]
[1769482558299,0.10395578,88843.0,88830.0,0.16195835]
[1769482558898,0.21652212,88842.0,88830.0,0.16195835]
[1769482559103,0.10395578,88841.0,88830.0,0.16195835]
[1769482559601,0.10395578,88840.0,88830.0,0.16195835]
[1769482559802,0.10395578,88839.0,88830.0,0.16195835]
[1769482559995,0.10395578,88838.0,88830.0,0.16195835]
[1769482560195,0.10395578,88837.0,88830.0,0.16195835]
[1769482560402,0.26339835,88850.0,88830.0,0.16195835]
[1769482560403,0.011268,88846.0,88830.0,0.16195835]
[1769482560609,0.11256761,88842.0,88830.0,0.17355894]
[1769482560798,0.011268,88846.0,88830.0,0.17355894]
[1769482561098,0.11256444,88845.0,88830.0,0.17355894]
[1769482561304,0.011268,88846.0,88830.0,0.17355894]
[1769482561507,0.11256444,88845.0,88830.0,0.17355894]
[1769482561806,0.26339835,88850.0,88830.0,0.17355894]
[1769482562007,0.011268,88844.0,88830.0,0.17355894]
[1769482562608,0.11256444,88843.0,88830.0,0.17355894]
[1769482563308,0.011269,88840.0,88830.0,0.16195835]
[1769482563509,0.011269,88840.0,88826.0,0.01158893]
[1769482564717,0.26339835,88850.0,88826.0,0.01158893]
[1769482564904,0.26339835,88850.0,88824.0,0.10144]
[1769482564905,0.011269,88837.0,88824.0,0.10144]
[1769482567717,0.011269,88837.0,88822.0,0.0115866]
[1769482568015,0.011269,88837.0,88822.0,0.1130266]
[1769482568423,0.011269,88837.0,88823.0,0.01153733]
[1769482569919,0.26339835,88850.0,88825.0,0.01153733]
[1769482570326,0.21401458,88849.0,88831.0,0.01153733]
[1769482570519,0.011268,88844.0,88831.0,0.01153733]
[1769482571016,0.21401458,88849.0,88831.0,0.01153733]
[1769482571017,0.10144,88849.0,88831.0,0.01153733]
[1769482571217,0.1125619,88843.0,88831.0,0.01153733]
[1769482571418,0.10144,88849.0,88831.0,0.01153733]
[1769482571725,0.1125619,88848.0,88831.0,0.01153733]
[1769482573319,0.011268,88844.0,88831.0,0.01153733]
[1769482573923,0.11256507,88843.0,88831.0,0.01153733]
[1769482574122,0.11256507,88843.0,88828.0,0.01127]
[1769482574323,0.11256507,88843.0,88828.0,0.02285454]
[1769482574522,0.10144,88849.0,88831.0,0.01158821]
[1769482574715,0.10144,88849.0,88833.0,0.01158821]
[1769482574916,0.12383561,88848.0,88833.0,0.01158821]
[1769482575714,0.011268,88846.0,88833.0,0.01158821]
[1769482576316,0.11256127,88845.0,88833.0,0.01158821]
[1769482577118,0.10144,88849.0,88833.0,0.01158821]
[1769482577317,0.011268,88848.0,88833.0,0.01158821]
[1769482577511,0.12383117,88848.0,88833.0,0.01158821]
[1769482579827,0.011268,88846.0,88833.0,0.01158821]
[1769482581229,0.10144,88849.0,88833.0,0.01158821]
[1769482581428,0.011268,88848.0,88833.0,0.01158821]
[1769482581726,0.12383054,88848.0,88833.0,0.01158821]
[1769482582029,0.11256254,88848.0,88833.0,0.01158821]
[1769482582827,0.11256254,88848.0,88834.0,0.01163714]
[1769482584630,0.011268,88847.0,88834.0,0.01163714]
[1769482585220,0.11256064,88846.0,88834.0,0.01163714]
[1769482589933,0.11256064,88846.0,88832.0,0.10144]
[1769482591638,0.11256064,88846.0,88833.0,0.01163636]
[1769482593341,0.11256064,88846.0,88834.0,0.011269]
[1769482593542,0.11256064,88846.0,88834.0,0.02297789]
[1769482593736,0.11256064,88846.0,88832.0,0.01170889]
[1769482594136,0.10144,88849.0,88833.0,0.01170889]
[1769482594338,0.112708,88849.0,88833.0,0.01170889]
[1769482597035,0.10144,88849.0,88833.0,0.01170889]
[1769482597539,0.10144,88849.0,88835.0,0.01175883]
[1769482597848,0.10144,88849.0,88836.0,0.011269]
[1769482598048,0.10144,88849.0,88836.0,0.02302783]
[1769482598642,0.011267,88855.0,88837.0,0.01174301]
[1769482599147,0.011267,88853.0,88837.0,0.01174301]
[1769482599346,0.11255874,88854.0,88838.0,0.011269]
[1769482599540,0.10144,88866.0,88844.0,0.01174301]
[1769482599740,0.10144,88866.0,88847.0,0.02301101]
[1769482600141,0.112705,88866.0,88847.0,0.01174301]
[1769482600345,0.1125429,88865.0,88847.0,0.01174301]
[1769482605740,0.011266,88864.0,88847.0,0.01174301]
[1769482605953,0.1125429,88865.0,88847.0,0.01174301]
[1769482606251,0.10144,88870.0,88847.0,0.01174301]
[1769482606451,0.11254164,88865.0,88847.0,0.01174301]
[1769482606651,0.10144,88870.0,88847.0,0.01174301]
[1769482606854,0.11254164,88869.0,88847.0,0.01174301]
[1769482607152,0.10144,88870.0,88847.0,0.01174301]
[1769482607352,0.11254164,88869.0,88848.0,0.01162324]
[1769482607539,0.11254164,88869.0,88849.0,0.011267]
[1769482607744,0.11254164,88869.0,88852.0,0.01162324]
[1769482608454,0.11254164,88869.0,88855.0,0.011267]
[1769482608656,0.11254164,88869.0,88852.0,0.01162324]
[1769482608856,0.11254164,88869.0,88853.0,0.02287226]
[1769482609457,0.11254164,88869.0,88854.0,0.01160526]
[1769482611162,0.011264,88874.0,88854.0,0.01160526]
[1769482611358,0.11253467,88872.0,88854.0,0.01160526]
[1769482612359,0.11253467,88872.0,88855.0,0.011267]
[1769482612754,0.11253467,88872.0,88855.0,0.02281775]
[1769482613861,0.11253467,88872.0,88856.0,0.01155075]
[1769482614064,0.11253467,88872.0,88857.0,0.011266]
[1769482616063,0.11253467,88872.0,88859.0,0.011266]
[1769482617050,0.10144,88876.0,88859.0,0.011266]
[1769482618764,0.10144,88876.0,88857.0,0.011266]
[1769482619759,0.011264,88875.0,88856.0,0.01155075]
[1769482619965,0.011264,88875.0,88856.0,0.02281775]
[1769482621869,0.01914145,88873.0,88856.0,0.01155075]
[1769482625067,0.011265,88871.0,88856.0,0.01155075]
[1769482626670,0.011265,88871.0,88856.0,0.11295075]
[1769482627071,0.00787645,88873.0,88856.0,0.12421775]
[1769482628174,0.00787645,88873.0,88858.0,0.011266]
[1769482628587,0.00787645,88873.0,88858.0,0.02273694]
[1769482628974,0.00787645,88873.0,88859.0,0.01147094]
[1769482630270,0.00787645,88873.0,88863.0,0.01147094]
[1769482630470,0.2253214,88885.0,88863.0,0.01147094]
[1769482630471,0.2253214,88886.0,88873.0,0.00900311]
[1769482630672,0.1,88891.0,88873.0,0.00900311]
[1769482630879,0.11252897,88892.0,88874.0,0.011264]
[1769482631082,0.00346647,88893.0,88875.0,0.00900311]
[1769482631284,0.00346647,88892.0,88875.0,0.00900311]
[1769482631482,0.00346647,88891.0,88875.0,0.00900311]
[1769482631679,0.00649849,88895.0,88881.0,0.00900311]
[1769482631883,0.00649849,88895.0,88882.0,0.02026611]
[1769482632077,0.00649849,88895.0,88883.0,0.11040311]
[1769482632279,0.00649849,88895.0,88884.0,0.00900311]
[1769482634980,0.00346647,88897.0,88884.0,0.00900311]
[1769482637882,0.00346647,88897.0,88885.0,0.02026611]
[1769482638389,0.1,88896.0,88885.0,0.00900311]
[1769482638989,0.00649745,88895.0,88885.0,0.00900311]
[1769482639386,0.10649745,88895.0,88885.0,0.00900311]
[1769482641478,0.00649745,88895.0,88885.0,0.00900311]
[1769482641684,0.00649745,88895.0,88883.0,0.11136663]
[1769482641685,0.1,88894.0,88883.0,0.11136663]
[1769482641986,0.1,88895.0,88883.0,0.11136663]
[1769482642189,0.10649724,88895.0,88883.0,0.11136663]
[1769482642388,0.1,88890.0,88884.0,0.1014]
[1769482642592,0.1,88889.0,88884.0,0.1014]
[1769482642983,0.1,88886.0,88884.0,0.1014]
[1769482643183,0.00426599,88894.0,88884.0,0.1014]
[1769482643184,0.1,88889.0,88884.0,0.1014]
[1769482643695,0.09,88887.0,88884.0,0.1014]
[1769482643994,0.09,88889.0,88884.0,0.1014]
[1769482644388,0.00649724,88895.0,88884.0,0.1014]
[1769482644589,0.00996573,88894.0,88884.0,0.1014]
[1769482646793,0.00996573,88894.0,88884.0,0.08683012]
[1769482648784,0.011262,88893.0,88884.0,0.08683012]
[1769482648980,0.011262,88893.0,88879.0,0.00999999]
[1769482649698,0.00649748,88895.0,88879.0,0.02126399]
[1769482649999,0.011262,88894.0,88879.0,0.02126399]
[1769482650193,0.11250239,88894.0,88875.0,0.011264]
[1769482650386,0.011262,88889.0,88875.0,0.1014]
[1769482650696,0.011262,88892.0,88875.0,0.112664]
[1769482651392,0.1014,88894.0,88877.0,0.011264]
[1769482651696,0.11250871,88893.0,88877.0,0.011264]
[1769482652089,0.11250871,88893.0,88880.0,0.16183785]
[1769482652996,0.00649748,88895.0,88885.0,0.010233]
[1769482653200,0.00649748,88895.0,88886.0,0.010233]
[1769482653201,0.10789748,88895.0,88886.0,0.010233]
[1769482653582,0.10789748,88895.0,88887.0,0.011263]
[1769482653788,0.10789748,88895.0,88887.0,0.021496]
[1769482653998,0.10789748,88895.0,88887.0,0.010233]
[1769482654989,0.011259,88918.0,88885.0,0.16183785]
[1769482654990,0.22354878,88920.0,88889.0,0.01031449]
[1769482655291,0.22354878,88920.0,88888.0,0.011262]
[1769482655292,0.00555358,88908.0,88891.0,0.01031449]
[1769482655990,0.00555358,88906.0,88898.0,0.16183785]
[1769482656204,0.00555358,88906.0,88892.0,0.00961043]
[1769482656698,0.11248657,88905.0,88892.0,0.00961043]
[1769482657397,0.11831537,88905.0,88892.0,0.00961043]
[1769482658691,0.11248657,88905.0,88893.0,0.00961043]